bitfinex-derivatives/quotes_BNBF0:USTF0_20241230
["timestamp","ask_amount","ask_price","bid_price","bid_amount"]
[1735526212150,0.28652063,698.03,696.69,1.06723244]
[1735526213549,0.28652063,698.03,696.43,0.28717889]
[1735526213550,0.28652063,698.03,696.67,1.06723244]
[1735526214445,0.28652063,698.03,696.68,1.06723244]
[1735526215751,0.28652063,698.03,696.69,1.06723244]
[1735526218145,0.28652063,698.03,696.7,1.06723244]
[1735526218850,0.28652063,698.03,696.44,1.82262089]
[1735526218851,0.28652063,698.03,696.68,1.06723244]
[1735526219951,0.28652063,698.03,696.73,1.06723244]
[1735526220853,0.28652063,698.03,696.47,1.06723244]
[1735526221955,0.28652063,698.03,696.49,1.06723244]
[1735526223458,0.28652063,698.03,696.48,1.06723244]
[1735526224658,0.28652063,698.03,696.49,1.06723244]
[1735526225562,0.28652063,698.03,696.5,1.06723244]
[1735526228864,0.28652063,698.03,696.56,1.06723244]
[1735526230959,0.28652063,698.03,696.71,1.06723244]
[1735526231158,0.26393312,698.02,696.71,1.06723244]
[1735526231657,0.28652063,698.03,696.71,1.06723244]
[1735526231858,1.06041187,697.91,696.48,1.06723244]
[1735526232166,0.26395109,697.9,696.48,1.06723244]
[1735526232366,0.28658222,697.88,696.48,1.06723244]
[1735526232963,0.28658222,697.88,696.5,1.06723244]
[1735526234268,0.28658222,697.88,696.47,1.06723244]
[1735526235370,0.26395639,697.87,696.47,1.06723244]
[1735526235570,0.28659454,697.85,696.47,1.06723244]
[1735526236070,0.28659454,697.85,696.45,1.06723244]
[1735526237172,0.28659454,697.85,696.43,1.35441133]
[1735526238266,0.28659454,697.85,696.43,0.28717889]
[1735526241576,0.28659454,697.85,696.26,1.06723244]
[1735526242076,0.26401079,697.84,696.26,1.06723244]
[1735526242276,0.26401079,697.84,696.1,1.06723244]
[1735526242874,0.28660686,697.82,696.1,1.06723244]
[1735526243076,0.26401079,697.81,696.1,1.06723244]
[1735526243274,0.28661918,697.79,696.03,1.06723244]
[1735526244576,0.28661918,697.79,695.97,1.06723244]
[1735526244775,0.28661918,697.79,695.97,1.35460114]
[1735526245577,0.28661918,697.79,695.97,0.2873687]
[1735526246279,0.2640348,697.78,695.97,0.2873687]
[1735526247081,0.28661918,697.79,695.97,0.2873687]
[1735526247581,0.26402076,697.78,695.98,1.06723244]
[1735526247781,0.2866315,697.76,695.98,1.06723244]
[1735526248981,0.2866315,697.76,695.97,0.2873687]
[1735526249373,0.2866315,697.76,695.97,3.76354705]
[1735526249579,0.2866315,697.76,695.97,2.11387591]
[1735526249776,0.2866315,697.76,695.97,0.2873687]
[1735526249979,0.2866315,697.76,696.0,1.06723244]
[1735526250978,0.2866315,697.76,696.04,1.06723244]
[1735526251978,0.2866315,697.76,696.09,1.06723244]
[1735526252583,0.2866315,697.76,696.1,0.28731504]
[1735526253786,0.2866315,697.76,696.11,1.06723244]
[1735526254179,0.2866315,697.76,696.12,0.28730678]
[1735526260987,0.26398096,697.75,696.12,0.28730678]
[1735526261188,0.28664383,697.73,696.12,1.35453922]
[1735526262391,0.28664383,697.73,696.38,1.06723244]
[1735526262892,0.26398127,697.72,696.38,1.06723244]
[1735526263089,0.28664383,697.73,696.38,1.06723244]
[1735526263594,0.28664383,697.73,696.41,1.06723244]
[1735526263992,0.2639855,697.72,696.41,1.06723244]
[1735526264193,0.28665615,697.7,696.41,1.06723244]
[1735526264795,0.28665615,697.7,696.44,1.06723244]
[1735526265991,0.28665615,697.7,696.54,1.06723244]
[1735526266594,0.28665615,697.7,696.58,1.06723244]
[1735526267992,0.28665615,697.7,696.61,1.06723244]
[1735526268997,0.28665615,697.7,696.59,1.06723244]
[1735526270594,0.28665615,697.7,696.62,1.06723244]
[1735526271599,0.28665615,697.7,696.65,1.06723244]
[1735526272496,0.28665615,697.7,696.63,1.06723244]
[1735526273502,0.28665615,697.7,696.59,1.06723244]
[1735526274499,0.28665615,697.7,696.58,1.06723244]
[1735526275600,0.28665615,697.7,696.57,1.06723244]
[1735526276400,0.28665615,697.7,696.44,1.06723244]
[1735526278408,0.28665615,697.7,696.69,1.06723244]
[1735526279408,0.28665615,697.7,696.65,1.06723244]
[1735526280208,0.28665615,697.7,696.46,2.70465308]
[1735526280209,0.28665615,697.7,696.64,1.06723244]
[1735526281208,0.28665615,697.7,696.53,1.06723244]
[1735526281209,0.28665615,697.7,696.51,3.47875812]
[1735526281416,0.28665615,697.7,696.51,1.82721585]
[1735526281707,0.28665615,697.7,694.69,2.84214877]
[1735526281912,0.28665615,697.7,674.23,21.39676185]
[1735526281913,0.28665615,697.7,694.7,6.18252443]
[1735526282112,0.28665615,697.7,694.71,3.47884742]
[1735526282312,0.28665615,697.7,694.72,4.35534784]
[1735526282513,0.28665615,697.7,694.73,3.47884742]
[1735526282714,0.28665615,697.7,694.74,6.18252443]
[1735526283013,0.28665615,697.7,694.75,3.47884742]
[1735526283214,0.28665615,697.7,694.76,3.47884742]
[1735526283514,0.28665615,697.7,696.55,1.06980884]
[1735526284614,0.28665615,697.7,696.28,6.18252443]
[1735526284615,0.28665615,697.7,696.5,1.06980884]
[1735526285813,0.28665615,697.7,696.55,1.06980884]
[1735526287215,0.28665615,697.7,696.53,1.06980884]
[1735526287914,1.0629372,698.44,696.53,1.06980884]
[1735526288115,0.28636064,698.42,696.54,0.28713354]
[1735526290221,0.26382421,698.41,696.54,0.28713354]
[1735526291318,0.26385615,698.4,696.54,0.28713354]
[1735526291515,0.28636064,698.42,696.54,0.28713354]
[1735526291516,0.26385615,698.39,696.54,0.28713354]
[1735526291716,0.28636064,698.42,696.54,0.28713354]
[1735526291717,0.26385615,698.38,696.54,0.28713354]
[1735526291916,0.26385615,698.37,696.54,0.28713354]
[1735526292118,0.26385615,698.41,696.54,0.28713354]
[1735526292319,0.26385615,698.4,696.54,0.28713354]
[1735526292621,0.26385003,698.39,696.54,0.28713354]
[1735526292822,0.26385003,698.38,696.54,0.28713354]
[1735526293014,0.26385003,698.37,696.54,0.28713354]
[1735526293216,0.26385003,698.36,696.54,0.28713354]
[1735526293417,0.26385003,698.35,696.54,0.28713354]
[1735526293721,0.26385003,698.34,696.54,0.28713354]
[1735526294021,0.26385003,698.33,696.54,0.28713354]
[1735526294224,0.28640575,698.31,696.54,0.28713354]
[1735526294423,0.26385003,698.3,696.54,0.28713354]
[1735526294621,0.26385466,698.29,696.54,0.28713354]
[1735526294822,0.26385466,698.28,696.54,0.28713354]
[1735526295020,0.26385466,698.27,696.54,0.28713354]
[1735526295220,0.26385466,698.26,696.54,0.28713354]
[1735526295421,0.55028502,698.25,696.54,0.28713354]
[1735526295620,0.26385466,698.24,696.54,0.28713354]
[1735526295823,0.28644266,698.22,696.54,0.28713354]
[1735526296123,0.26385466,698.21,696.54,0.28713354]
[1735526297122,0.28645497,698.19,696.54,0.28713354]
[1735526297718,0.26384692,698.18,696.54,0.28713354]
[1735526297924,0.28646728,698.16,696.54,0.28713354]
[1735526298517,0.26384426,698.15,696.54,0.28713354]
[1735526298718,0.28647959,698.13,696.54,0.28713354]
[1735526298919,0.28647959,698.13,696.58,1.06980884]
[1735526299820,0.28647959,698.13,696.66,1.06980884]
[1735526300723,0.28647959,698.13,696.77,1.06980884]
[1735526303026,0.28647959,698.13,696.8,1.06980884]
[1735526305526,0.28647959,698.13,696.78,1.06980884]
[1735526307427,0.28647959,698.13,696.76,1.06980884]
[1735526308730,0.28647959,698.13,696.78,1.06980884]
[1735526309930,0.28647959,698.13,696.57,1.06980884]
[1735526310527,0.28647959,698.13,696.58,0.28711705]
[1735526314832,0.28647959,698.13,696.83,1.06980884]
[1735526315732,0.28647959,698.13,696.8,1.06980884]
[1735526316635,0.28647959,698.13,696.78,1.06980884]
[1735526317429,0.28647959,698.13,696.77,1.06980884]
[1735526318528,0.28647959,698.13,696.76,1.06980884]
[1735526320036,0.28647959,698.13,696.77,1.06980884]
[1735526321135,0.28647959,698.13,696.75,1.06980884]
[1735526322131,0.28647959,698.13,696.58,0.28711705]
[1735526322132,0.28647959,698.13,696.78,1.06980884]
[1735526323634,0.28647959,698.13,696.58,0.28711705]
[1735526323635,0.28647959,698.13,696.8,1.06980884]
[1735526325437,0.26383313,698.12,696.8,1.06980884]
[1735526325639,0.26383313,698.12,696.7,1.06980884]
[1735526325640,0.2864919,698.1,696.81,1.06980884]
[1735526326844,0.26384278,698.09,696.86,1.06980884]
[1735526327038,0.28650421,698.07,696.86,1.06980884]
[1735526328140,0.28650421,698.07,696.94,1.06980884]
[1735526330437,0.28650421,698.07,696.95,1.06980884]
[1735526333341,0.28650421,698.07,696.91,1.06980884]
[1735526334245,0.28650421,698.07,696.93,1.06980884]
[1735526335049,0.28650421,698.07,696.94,1.06980884]
[1735526336148,0.28650421,698.07,696.93,1.06980884]
[1735526336646,0.28650421,698.07,696.93,2.89833089]
[1735526336843,0.28650421,698.07,696.94,2.89833089]
[1735526337042,0.28650421,698.07,696.95,1.82852205]
[1735526337246,0.28650421,698.07,696.94,1.06980884]
[1735526338247,0.28650421,698.07,696.91,1.06980884]
[1735526339451,0.28650421,698.07,696.9,1.06980884]
[1735526340651,0.28650421,698.07,696.82,1.06980884]
[1735526342062,0.28650421,698.07,696.58,1.35692589]
[1735526343262,0.28650421,698.07,696.6,1.06980884]
[1735526345464,0.28650421,698.07,696.61,1.06980884]
[1735526346257,0.28650421,698.07,696.6,1.06980884]
[1735526346863,0.28650421,698.07,696.65,1.06980884]
[1735526347765,0.28650421,698.07,696.64,1.06980884]
[1735526349066,0.28650421,698.07,696.65,1.06980884]
[1735526350167,0.28650421,698.07,696.58,0.28711705]
[1735526351168,0.28650421,698.07,696.73,1.06980884]
[1735526352062,0.28650421,698.07,696.74,1.06980884]
[1735526354170,0.28650421,698.07,696.75,1.06980884]
[1735526355473,0.28650421,698.07,696.84,1.06980884]
[1735526356672,0.28650421,698.07,696.63,3.49258637]
[1735526356673,0.28650421,698.07,696.89,1.06980884]
[1735526357674,0.28650421,698.07,697.02,1.06980884]
[1735526358673,0.28650421,698.07,696.94,1.06980884]
[1735526359977,0.28650421,698.07,696.97,1.06980884]
[1735526360877,0.28650421,698.07,696.85,1.06980884]
[1735526360878,0.28650421,698.07,696.94,1.06980884]
[1735526361577,1.0629372,698.4,696.94,1.06980884]
[1735526361777,1.0629372,698.4,696.95,0.28696463]
[1735526361971,1.0629372,698.76,696.95,0.28696463]
[1735526362175,0.28622949,698.74,696.95,0.28696463]
[1735526363179,0.28622949,698.74,697.01,1.06980884]
[1735526363382,0.28622949,698.74,697.02,0.28693581]
[1735526363873,0.28622949,698.74,697.03,0.55494789]
[1735526364077,0.28622949,698.74,697.04,0.84187546]
[1735526364277,0.28622949,698.74,697.05,0.84187135]
[1735526364477,0.28622949,698.74,697.06,0.84186723]
[1735526364674,0.28622949,698.74,697.07,0.84186312]
[1735526364877,0.28622949,698.74,697.08,0.55494789]
[1735526365078,0.28622949,698.74,697.09,0.55494789]
[1735526365278,0.28622949,698.74,697.1,0.55494789]
[1735526365474,0.28622949,698.74,697.11,0.55494789]
[1735526365680,0.28622949,698.74,697.12,0.55494789]
[1735526365878,0.28622949,698.74,697.13,0.55494789]
[1735526366079,0.28622949,698.74,697.07,0.28691523]
[1735526366080,0.28622949,698.74,697.14,0.55494789]
[1735526366280,0.28622949,698.74,697.15,0.55494789]
[1735526366579,0.28622949,698.74,697.16,0.55494789]
[1735526366774,0.28622949,698.74,697.17,0.55494789]
[1735526366978,0.28622949,698.74,697.18,0.55494789]
[1735526367180,0.28622949,698.74,697.19,0.55494789]
[1735526367379,0.28622949,698.74,697.2,0.55494789]
[1735526367575,0.28622949,698.74,697.21,0.55494789]
[1735526367774,0.28622949,698.74,697.22,0.55494789]
[1735526367974,0.28622949,698.74,697.23,0.55494789]
[1735526368176,0.28622949,698.74,697.24,0.55494789]
[1735526368375,0.28622949,698.74,697.25,0.55494789]
[1735526368579,0.28622949,698.74,697.07,0.28691523]
[1735526372084,0.28622949,698.74,697.08,0.55153806]
[1735526372279,0.28622949,698.74,697.09,0.55153806]
[1735526372480,0.28622949,698.74,697.1,0.55153806]
[1735526372683,0.28622949,698.74,697.11,0.55153806]
[1735526372882,0.28622949,698.74,697.12,0.55153806]
[1735526373187,0.28622949,698.74,697.13,0.55153806]
[1735526373384,0.28622949,698.74,697.14,0.55153806]
[1735526373585,0.28622949,698.74,697.15,0.55153806]
[1735526373782,0.28622949,698.74,697.16,0.55153806]
[1735526373987,0.28622949,698.74,697.17,0.55153806]
[1735526374282,0.28622949,698.74,697.18,0.55153806]
[1735526374587,0.28622949,698.74,697.19,0.55153806]
[1735526374782,0.28622949,698.74,697.2,0.55153806]
[1735526374985,0.28622949,698.74,697.21,0.55153806]
[1735526375190,0.28622949,698.74,697.22,0.55153806]
[1735526375484,0.28622949,698.74,697.23,0.55153806]
[1735526375683,0.28622949,698.74,697.24,0.55153806]
[1735526375887,0.28622949,698.74,697.25,0.83837922]
[1735526376088,0.28622949,698.74,697.26,0.55153806]
[1735526376288,0.28622949,698.74,697.27,0.83837099]
[1735526376486,0.28622949,698.74,697.28,0.83836688]
[1735526376686,0.28622949,698.74,697.29,0.83836276]
[1735526376889,0.28622949,698.74,697.3,0.83835865]
[1735526377189,0.28622949,698.74,697.31,0.55153806]
[1735526377387,0.28622949,698.74,697.32,0.55153806]
[1735526377588,0.28622949,698.74,697.33,0.55153806]
[1735526377791,0.28622949,698.74,697.34,0.55153806]
[1735526377988,0.28622949,698.74,697.3,0.28682059]
[1735526377989,0.28622949,698.74,697.35,0.55153806]
[1735526378186,0.28622949,698.74,697.3,0.28682059]
[1735526378187,0.28622949,698.74,697.36,0.55153806]
[1735526378385,0.28622949,698.74,697.37,0.55153806]
[1735526378586,0.28622949,698.74,697.38,0.55153806]
[1735526378883,0.28622949,698.74,697.39,0.55153806]
[1735526379087,0.28622949,698.74,697.4,0.55153806]
[1735526379287,0.28622949,698.74,697.41,0.55153806]
[1735526379484,0.28622949,698.74,697.42,0.55153806]
[1735526379683,0.28622949,698.74,697.43,0.55153806]
[1735526379886,0.28622949,698.74,697.44,0.54766227]
[1735526380087,0.28622949,698.74,697.45,0.54766227]
[1735526380385,0.28622949,698.74,697.46,0.54766227]
[1735526380590,0.28622949,698.74,697.47,0.54766227]
[1735526380785,0.28622949,698.74,697.48,0.54766227]
[1735526380990,0.28622949,698.74,697.49,0.54766227]
[1735526381191,0.28622949,698.74,697.5,0.54766227]
[1735526381392,0.28622949,698.74,697.51,0.54766227]
[1735526381590,0.28622949,698.74,697.52,0.54766227]
[1735526381892,0.28622949,698.74,697.36,0.28679591]
[1735526381893,0.28622949,698.74,697.53,0.54766227]
[1735526382093,0.28622949,698.74,697.36,0.28679591]
[1735526382094,0.28622949,698.74,697.54,0.54766227]
[1735526382389,0.28622949,698.74,697.55,0.54766227]
[1735526382587,0.28622949,698.74,697.36,0.28679591]
[1735526382588,0.28622949,698.74,697.56,0.54766227]
[1735526382886,0.28622949,698.74,697.36,0.28679591]
[1735526383092,0.28622949,698.74,697.37,0.54682566]
[1735526383391,0.28622949,698.74,697.38,0.54682566]
[1735526383590,0.28622949,698.74,697.39,0.54682566]
[1735526383785,0.28622949,698.74,697.4,0.54682566]
[1735526383988,0.28622949,698.74,697.41,0.54682566]
[1735526384187,0.28622949,698.74,697.36,0.28679591]
[1735526384387,0.28622949,698.74,697.37,0.54661805]
[1735526384593,0.28622949,698.74,697.38,0.54661805]
[1735526384784,0.28622949,698.74,697.39,0.54661805]
[1735526384985,0.28622949,698.74,697.4,0.54661805]
[1735526385188,0.28622949,698.74,697.41,0.54661805]
[1735526385493,0.28622949,698.74,697.42,0.54661805]
[1735526385693,0.28622949,698.74,697.43,0.54661805]
[1735526385991,0.28622949,698.74,697.36,0.28679591]
[1735526386191,0.28622949,698.74,697.37,0.54636039]
[1735526386392,0.28622949,698.74,697.38,0.54636039]
[1735526386695,0.28622949,698.74,697.39,0.54636039]
[1735526386891,0.28622949,698.74,697.4,0.54636039]
[1735526387092,0.28622949,698.74,697.41,0.54636039]
[1735526387292,0.28622949,698.74,697.42,0.54636039]
[1735526387492,0.28622949,698.74,697.36,0.28679591]
[1735526387493,0.28622949,698.74,697.43,0.54636039]
[1735526387689,0.28622949,698.74,697.44,0.54636039]
[1735526387888,0.28622949,698.74,697.45,0.54636039]
[1735526388091,0.28622949,698.74,697.46,0.54636039]
[1735526388395,0.28622949,698.74,697.47,0.54636039]
[1735526388589,0.28622949,698.74,697.48,0.54636039]
[1735526388790,0.28622949,698.74,697.49,0.54636039]
[1735526388987,0.28622949,698.74,697.5,0.54636039]
[1735526389194,0.28622949,698.74,697.51,0.54636039]
[1735526389393,0.28622949,698.74,697.52,0.54636039]
[1735526389588,0.28622949,698.74,697.36,0.28679591]
[1735526389894,0.28622949,698.74,697.37,0.54612399]
[1735526390090,0.28622949,698.74,697.38,0.54612399]
[1735526390294,0.28622949,698.74,697.39,0.54612399]
[1735526390494,0.28622949,698.74,697.4,0.54612399]
[1735526390694,0.28622949,698.74,697.41,0.54612399]
[1735526390897,0.28622949,698.74,697.42,0.54612399]
[1735526391196,0.28622949,698.74,697.43,0.54612399]
[1735526391495,0.28622949,698.74,697.44,0.54609238]
[1735526391690,0.28622949,698.74,697.45,0.54609238]
[1735526391995,0.28622949,698.74,697.46,0.54609238]
[1735526392194,0.28622949,698.74,697.47,0.54609238]
[1735526392396,0.28622949,698.74,697.48,0.54609238]
[1735526392591,0.28622949,698.74,697.49,0.54609238]
[1735526392792,0.28622949,698.74,697.5,0.54609238]
[1735526392997,0.28622949,698.74,697.51,0.54609238]
[1735526393195,0.28622949,698.74,697.52,0.54609238]
[1735526393494,0.28622949,698.74,697.53,0.54609238]
[1735526393695,0.28622949,698.74,697.54,0.54609238]
[1735526393894,0.28622949,698.74,697.55,0.54609238]
[1735526394098,0.28622949,698.74,697.56,0.54609238]
[1735526394299,0.28622949,698.74,697.57,0.54609238]
[1735526394594,0.28622949,698.74,697.58,0.54609238]
[1735526394795,0.28622949,698.74,697.59,0.54609238]
[1735526394989,0.28622949,698.74,697.6,0.54609238]
[1735526395190,0.28622949,698.74,697.61,0.54609238]
[1735526395391,0.28622949,698.74,697.62,0.54609238]
[1735526395594,0.28622949,698.74,697.63,0.54609238]
[1735526395792,0.28622949,698.74,697.64,0.54609238]
[1735526395998,0.28622949,698.74,697.36,0.28679591]
[1735526395999,0.28622949,698.74,697.65,0.54609238]
[1735526396197,0.28622949,698.74,697.66,0.54609238]
[1735526396397,0.28622949,698.74,697.67,0.54609238]
[1735526396594,0.28622949,698.74,697.68,0.54609238]
[1735526396795,0.28622949,698.74,697.69,0.54609238]
[1735526396997,0.28622949,698.74,697.7,0.54609238]
[1735526397194,0.28622949,698.74,697.36,0.28679591]
[1735526397195,0.28622949,698.74,697.71,0.54609238]
[1735526397400,0.28622949,698.74,697.72,0.54609238]
[1735526397600,0.28622949,698.74,697.73,0.54609238]
[1735526397800,0.28622949,698.74,697.74,0.54609238]
[1735526398100,0.28622949,698.74,697.75,0.54609238]
[1735526398299,0.28622949,698.74,697.76,0.54609238]
[1735526398500,0.28622949,698.74,697.37,0.54609238]
[1735526398699,0.28622949,698.74,697.38,0.54609238]
[1735526398999,0.28622949,698.74,697.39,0.54702194]
[1735526399199,0.28622949,698.74,697.4,0.54702194]
[1735526399400,0.28622949,698.74,697.41,0.54702194]
[1735526399599,0.28622949,698.74,697.42,0.54702194]
[1735526399895,0.28622949,698.74,697.43,0.54702194]
[1735526400100,0.28622949,698.74,697.44,0.54702194]
[1735526400297,0.28622949,698.74,697.45,0.54702194]
[1735526400496,0.28622949,698.74,697.46,0.54702194]
[1735526400694,0.28622949,698.74,697.47,0.54702194]
[1735526400897,0.28622949,698.74,697.48,0.54702194]
[1735526401099,0.28622949,698.74,697.49,0.54702194]
[1735526401300,0.28622949,698.74,697.5,0.54702194]
[1735526401496,0.28622949,698.74,697.51,0.54702194]
[1735526401700,0.28622949,698.74,697.52,0.54702194]
[1735526401901,0.28622949,698.74,697.53,0.54702194]
[1735526402099,0.28622949,698.74,697.54,0.54702194]
[1735526402298,0.28622949,698.74,697.55,0.54702194]
[1735526402502,0.28622949,698.74,689.39,8.46374917]
[1735526402503,0.28622949,698.74,697.56,0.54702194]
[1735526402700,0.28622949,698.74,697.57,0.54702194]
[1735526402898,0.28622949,698.74,697.58,0.54702194]
[1735526403099,0.28622949,698.74,697.59,0.54702194]
[1735526403301,0.28622949,698.74,697.6,0.54702194]
[1735526403499,0.28622949,698.74,697.61,0.54702194]
[1735526403696,0.28622949,698.74,697.62,0.54702194]
[1735526403896,0.28622949,698.74,697.63,0.54702194]
[1735526404095,0.28622949,698.74,697.64,0.54702194]
[1735526404302,0.28622949,698.74,697.65,0.54702194]
[1735526404502,0.28622949,698.74,697.66,0.54702194]
[1735526404697,0.28622949,698.74,696.55,1.06980884]
[1735526404698,0.28622949,698.74,697.67,0.54702194]
[1735526404901,0.28622949,698.74,697.68,0.54702194]
[1735526405102,0.28622949,698.74,697.69,0.54702194]
[1735526405297,0.28622949,698.74,697.7,0.54702194]
[1735526405505,0.28622949,698.74,697.71,0.54702194]
[1735526405802,0.28622949,698.74,697.72,0.54702194]
[1735526405998,0.28622949,698.74,697.73,0.54702194]
[1735526406198,0.28622949,698.74,697.74,0.54702194]
[1735526406402,0.28622949,698.74,697.75,0.54702194]
[1735526406704,0.28622949,698.74,697.76,0.54811501]
[1735526406905,0.28622949,698.74,697.77,0.54811501]
[1735526407102,0.26361794,698.73,697.78,0.548103]
[1735526407301,0.26361794,698.73,697.79,0.548103]
[1735526407502,0.26360095,698.72,697.8,0.548103]
[1735526407703,0.26360095,698.73,697.81,0.548103]
[1735526407904,0.26360095,698.71,697.82,0.548103]
[1735526408099,0.26360095,698.72,697.83,0.548103]
[1735526408306,0.28624998,698.69,697.84,0.548103]
[1735526408506,0.26360095,698.68,697.85,0.548103]
[1735526408709,0.26360095,698.68,697.86,0.548103]
[1735526408911,0.26360095,698.68,697.87,0.54858065]
[1735526409209,0.26360095,698.68,697.88,0.54858065]
[1735526409405,0.28625817,698.67,697.89,0.54858065]
[1735526409605,0.28625817,698.67,696.75,1.89964028]
[1735526409810,0.28625817,698.67,696.77,0.28703876]
[1735526410010,0.28625817,698.67,696.78,0.54894201]
[1735526410210,0.28625817,698.67,696.79,0.54894201]
[1735526410412,0.28625817,698.67,696.8,0.54894201]
[1735526410612,0.28625817,698.67,696.81,0.54894201]
[1735526410807,0.28625817,698.67,696.82,0.54894201]
[1735526411012,0.28625817,698.67,697.05,1.06758777]
[1735526411314,0.28625817,698.67,697.06,0.54894201]
[1735526411505,0.28625817,698.67,697.07,0.54894201]
[1735526411709,0.28625817,698.67,697.09,1.06758777]
[1735526412012,0.28625817,698.67,697.1,0.54894201]
[1735526412212,0.28625817,698.67,697.11,0.54894201]
[1735526412514,0.28625817,698.67,697.12,0.54894201]
[1735526412811,0.28625817,698.67,697.13,0.54994324]
[1735526413013,0.28625817,698.67,697.14,0.54994324]
[1735526413215,0.28625817,698.67,697.15,0.54994324]
[1735526413414,0.28625817,698.67,697.16,0.54994324]
[1735526413610,0.28625817,698.67,697.17,0.54994324]
[1735526413811,0.28625817,698.67,697.18,0.54994324]
[1735526414008,0.28625817,698.67,697.19,0.54994324]
[1735526414214,0.28625817,698.67,697.2,0.54994324]
[1735526414413,0.28625817,698.67,697.21,0.54994324]
[1735526414613,0.28625817,698.67,697.22,0.54994324]
[1735526414812,0.28625817,698.67,697.23,0.54994324]
[1735526415008,0.28625817,698.67,697.24,0.54994324]
[1735526415213,0.28625817,698.67,697.25,0.54994324]
[1735526415408,0.28625817,698.67,697.26,0.54994324]
[1735526415712,0.28625817,698.67,697.27,0.55113101]
[1735526416015,0.28625817,698.67,697.28,0.55113101]
[1735526416213,0.28625817,698.67,697.29,0.55113101]
[1735526416409,0.28625817,698.67,697.3,0.55113101]
[1735526416610,0.28625817,698.67,697.31,0.55113101]
[1735526416812,0.28625817,698.67,697.32,0.55113101]
[1735526417007,0.26363516,698.66,697.33,0.55113101]
[1735526417207,0.26363516,698.66,697.34,0.55113101]
[1735526417415,0.28625817,698.67,697.35,0.55113101]
[1735526417713,0.26363463,698.66,697.36,0.55113101]
[1735526417913,0.26363463,698.66,697.37,0.55113101]
[1735526418112,0.28627046,698.64,697.38,0.55113101]
[1735526418316,0.28627046,698.64,697.39,0.55113101]
[1735526418614,0.26366361,698.63,697.4,0.55113101]
[1735526418815,0.28628276,698.61,697.41,0.55113101]
[1735526419116,0.26368912,698.6,697.42,0.55113101]
[1735526419319,0.26368912,698.6,697.43,0.55113101]
[1735526419515,0.28629505,698.58,697.44,0.55113101]
[1735526419709,0.26368912,698.57,697.45,0.55113101]
[1735526419914,0.28630735,698.55,697.46,0.55113101]
[1735526420112,0.28630735,698.55,693.52,2.00362603]
[1735526420113,0.26370588,698.54,697.47,0.55113101]
[1735526420313,0.28631964,698.52,697.48,0.55113101]
[1735526420514,0.26370588,698.51,697.49,0.55113101]
[1735526420714,0.28633194,698.49,697.5,0.55113101]
[1735526420914,0.26370588,698.48,697.51,0.55113101]
[1735526421216,0.28633194,698.49,697.52,0.55113101]
[1735526421516,0.28633194,698.49,697.53,0.55113101]
[1735526421718,0.28633194,698.49,697.54,0.55113101]
[1735526422016,0.26371669,698.48,697.55,0.55113101]
[1735526422217,0.26371669,698.48,697.56,0.55113101]
[1735526422417,0.28633194,698.49,697.57,0.55113101]
[1735526422716,0.2637242,698.48,697.58,0.55113101]
[1735526422910,0.2637242,698.48,697.59,0.55113101]
[1735526423114,0.2637242,698.48,697.6,0.55113101]
[1735526423315,0.2637242,698.48,697.61,0.55113101]
[1735526423514,0.2637242,698.48,697.62,0.55113101]
[1735526423711,0.2637242,698.48,697.63,0.55113101]
[1735526423912,0.28634424,698.46,697.64,0.55113101]
[1735526424114,0.28634424,698.46,697.65,0.55113101]
[1735526424314,0.28634424,698.46,697.66,0.55113101]
[1735526424514,0.28634424,698.46,697.67,0.55113101]
[1735526424818,0.28634424,698.46,697.68,0.55113101]
[1735526425012,0.28634424,698.46,697.69,0.55113101]
[1735526425212,0.28634424,698.46,697.7,0.55113101]
[1735526425413,0.26372994,698.45,696.81,1.06758777]
[1735526425614,0.28635654,698.43,696.82,1.61923228]
[1735526425815,0.28635654,698.43,696.83,0.55164451]
[1735526426114,0.28635654,698.43,696.84,0.55164451]
[1735526426312,0.28635654,698.43,696.85,0.55164451]
[1735526426514,0.28635654,698.43,696.86,0.55164451]
[1735526426715,0.28635654,698.43,696.87,0.55164451]
[1735526427017,0.2637455,698.42,696.88,0.55164451]
[1735526427216,0.28636884,698.4,696.89,0.55164451]
[1735526427517,0.28636884,698.4,696.9,0.55164451]
[1735526427712,0.28636884,698.4,696.91,0.55164451]
[1735526427913,0.28636884,698.4,696.82,1.06758777]
[1735526428118,0.28636884,698.4,696.83,0.55129577]
[1735526428312,0.28636884,698.4,696.84,0.55129577]
[1735526428517,0.28636884,698.4,696.85,0.55129577]
[1735526428712,0.28636884,698.4,696.77,0.28703876]
[1735526428713,0.28636884,698.4,696.86,0.55129577]
[1735526428917,0.28636884,698.4,696.87,0.55129577]
[1735526429117,0.28636884,698.4,696.88,0.55129577]
[1735526429314,0.28636884,698.4,696.89,0.55129577]
[1735526429513,0.28636884,698.4,696.9,0.55129577]
[1735526429719,0.28636884,698.4,696.91,0.55129577]
[1735526430017,0.28636884,698.4,696.92,0.55129577]
[1735526430217,0.28636884,698.4,696.93,0.55129577]
[1735526430419,0.28636884,698.4,696.94,0.55129577]
[1735526430717,0.28636884,698.4,696.95,0.55129577]
[1735526430917,0.28636884,698.4,696.89,1.06758777]
[1735526431217,0.28636884,698.4,696.9,0.55095839]
[1735526431419,0.28636884,698.4,696.91,0.55095839]
[1735526431618,0.28636884,698.4,696.92,0.55095839]